bitfinex/quotes_SOLUSD_20250415
["timestamp","ask_amount","ask_price","bid_price","bid_amount"]
[1744752162111,10.1535164,127.87,127.84,116.82223185]
[1744752162517,10.1535164,127.87,127.84,109.0]
[1744752163415,10.1535164,127.86,127.84,83.0]
[1744752164640,26.46980293,127.88,127.84,83.0]
[1744752164816,10.1535164,127.86,127.84,83.0]
[1744752165141,10.1535164,127.87,127.84,83.0]
[1744752165340,10.1535164,127.87,127.84,90.82227208]
[1744752165529,28.80316526,127.88,127.84,90.82227208]
[1744752166134,18.64964886,127.9,127.85,26.0]
[1744752166341,10.1535164,127.89,127.85,26.0]
[1744752167426,10.1535164,127.89,127.86,7.82105427]
[1744752167848,18.64964886,127.9,127.86,7.82105427]
[1744752168138,28.80316526,127.9,127.86,7.82105427]
[1744752168440,10.1535164,127.9,127.87,26.0]
[1744752168615,28.80316526,127.91,127.87,26.0]
[1744752169444,28.80316526,127.91,127.87,33.82004215]
[1744752172651,17.97111398,127.92,127.87,116.82004215]
[1744752174135,17.97111398,127.92,127.87,126.97355855]
[1744752177238,17.97111398,127.92,127.87,116.82004215]
[1744752179561,0.03,127.94,127.87,146.52466514]
[1744752179736,0.03,127.94,127.9,36.1535164]
[1744752179942,0.03,127.94,127.9,109.0]
[1744752180462,0.03,127.94,127.9,119.1535164]
[1744752180642,0.03,127.94,127.9,83.0]
[1744752180842,0.03,127.94,127.91,26.0]
[1744752181043,0.03,127.94,127.93,26.0]
[1744752181645,8.94622996,127.96,127.93,33.81677479]
[1744752181844,10.1535164,127.96,127.93,33.81677479]
[1744752183234,28.83316526,127.97,127.93,33.81677479]
[1744752184461,10.1835164,127.97,127.93,33.81677479]
[1744752187462,0.03,127.97,127.93,33.81677479]
[1744752187652,0.03,127.97,127.93,43.97029119]
[1744752189161,0.03,127.97,127.93,126.97029119]
[1744752190061,0.03,127.97,127.96,26.0]
[1744752190454,0.03,127.97,127.96,37.7928164]
[1744752192062,0.03,127.97,127.96,45.60775856]
[1744752192767,0.03,127.97,127.96,45.74992013]
[1744752198072,0.03,128.01,127.96,45.74992013]
[1744752198270,0.03,128.01,128.0,10.1535164]
[1744752198461,0.03,128.01,128.0,36.1535164]
[1744752199967,0.03,128.01,128.0,43.9660164]
[1744752200184,0.03,128.03,128.02,26.14216157]
[1744752200361,0.03,128.03,128.02,36.1535164]
[1744752200563,0.03,128.03,128.01,1.5547]
[1744752200865,0.03,128.03,128.02,26.0]
[1744752202070,0.03,128.03,128.02,33.81127948]
[1744752203694,0.03,128.03,128.02,26.0]
[1744752203973,0.03,128.03,128.02,109.0]
[1744752209160,0.03,128.03,128.02,83.0]
[1744752210476,7.84066937,128.03,128.02,83.0]
[1744752211568,0.03,128.03,128.02,83.0]
[1744752217890,0.03,128.09,128.03,109.14216157]
[1744752218192,10.1835164,128.09,128.04,17.9633595]
[1744752219195,0.03,128.09,128.05,10.1535164]
[1744752219492,0.03,128.09,128.05,17.96266609]
[1744752220070,0.03,128.09,128.06,10.1535164]
[1744752220270,0.03,128.09,128.06,93.1535164]
[1744752220474,0.03,128.09,128.07,10.1535164]
[1744752221087,0.03,128.09,128.06,93.1535164]
[1744752221479,0.03,128.09,128.06,83.0]
[1744752221985,10.1835164,128.09,128.06,83.0]
[1744752222803,7.83701069,128.09,128.06,83.0]
[1744752222984,17.99052709,128.09,128.06,83.0]
[1744752223501,7.83701069,128.09,128.06,83.0]
[1744752225700,2.864857,128.16,128.12,26.0]
[1744752225995,2.864857,128.16,128.13,10.1535164]
[1744752226387,2.864857,128.16,128.14,10.1535164]
[1744752226583,2.864857,128.16,128.13,10.1535164]
[1744752227686,2.864857,128.16,128.15,7.80335544]
[1744752229402,2.864857,128.16,128.14,10.1535164]
[1744752229608,2.864857,128.16,128.13,7.80457348]
[1744752231603,2.864857,128.16,128.13,17.95808988]
[1744752232626,0.03,128.22,128.18,26.0]
[1744752232810,6.0185,128.25,128.21,10.1535164]
[1744752233010,11.7098164,128.26,128.21,36.1535164]
[1744752234028,10.1535164,128.24,128.21,26.0]
[1744752234323,10.1535164,128.23,128.21,26.0]
[1744752234630,10.1535164,128.23,128.19,33.8009205]
[1744752235209,15.76343731,128.23,128.19,33.8009205]
[1744752236132,7.79795596,128.24,128.19,33.8009205]
[1744752236315,15.76343731,128.24,128.19,49.56435781]
[1744752236630,15.76343731,128.23,128.19,26.0]
[1744752236808,15.76343731,128.21,128.17,7.80167813]
[1744752237014,34.41308617,128.21,128.15,23.56679275]
[1744752237215,34.41308617,128.21,128.18,26.0]
[1744752237525,34.41308617,128.21,128.15,23.56679275]
[1744752237824,34.41308617,128.21,128.18,26.0]
[1744752238028,18.64964886,128.21,128.18,26.0]
[1744752238735,42.212824,128.21,128.18,26.0]
[1744752239110,29.98509504,128.22,128.18,26.0]
[1744752239311,29.98509504,128.22,128.18,33.80145847]
[1744752239911,29.98509504,128.22,128.18,26.0]
[1744752240241,22.18583731,128.22,128.18,33.80121667]
[1744752241022,14.22154255,128.22,128.18,33.80121667]
[1744752241227,29.98497986,128.22,128.18,33.80121667]
[1744752241432,14.22154255,128.22,128.18,33.80121667]
[1744752241627,29.98497986,128.22,128.18,33.80121667]
[1744752242341,29.98497986,128.22,128.17,33.80213778]
[1744752244553,29.98497986,128.22,128.17,116.80213778]
[1744752244723,42.21279726,128.21,128.17,83.0]
[1744752245335,42.21279726,128.21,128.17,90.80212531]
[1744752245635,42.21279726,128.21,128.17,83.0]
[1744752246333,26.44935995,128.21,128.17,83.0]
[1744752246548,42.21279726,128.21,128.17,90.80211988]
[1744752248037,15.76343731,128.19,128.17,83.0]
[1744752248438,26.44935995,128.21,128.17,83.0]
[1744752248622,15.76343731,128.2,128.17,83.0]
[1744752249024,26.44935995,128.21,128.17,83.0]
[1744752249225,15.76343731,128.2,128.17,83.0]
[1744752249641,1.5563,128.24,128.2,26.0]
[1744752249849,1.5563,128.24,128.2,98.76343731]
[1744752250043,6.2269,128.25,128.21,23.56314092]
[1744752250450,6.2269,128.25,128.21,7.79970361]
[1744752252563,6.2269,128.25,128.21,23.56314092]
[1744752252851,6.2269,128.25,128.21,7.79970361]
[1744752253029,6.2269,128.25,128.21,23.56314092]
[1744752253229,6.2269,128.25,128.21,7.79970361]
[1744752253230,21.99033731,128.25,128.21,7.79970361]
[1744752253648,21.99033731,128.25,128.21,90.79970361]
[1744752253947,18.64964886,128.24,128.21,90.79970361]
[1744752254650,21.99033731,128.25,128.21,90.79970361]
[1744752255653,6.2269,128.25,128.21,90.79970361]
[1744752257749,15.76343731,128.27,128.21,106.56314092]
[1744752257955,15.76343731,128.27,128.22,15.76343731]
[1744752259054,42.20916225,128.27,128.22,15.76343731]
[1744752259230,42.20916225,128.27,128.21,233.26343731]
[1744752259434,34.41308617,128.27,128.22,7.79883074]
[1744752259658,15.76343731,128.27,128.22,23.56226805]
[1744752259955,34.41308617,128.27,128.22,23.56226805]
[1744752260153,42.20927737,128.27,128.22,7.79883074]
[1744752260357,42.20927737,128.27,128.22,23.56226805]
[1744752260832,15.76343731,128.23,128.21,217.5]
[1744752261038,15.76343731,128.23,128.21,83.0]
[1744752261236,23.56199336,128.23,128.21,83.0]
[1744752261444,15.76343731,128.22,128.21,83.0]
[1744752262170,34.41308617,128.22,128.21,83.0]
[1744752263234,42.21218147,128.22,128.21,83.0]
[1744752263635,18.64964886,128.21,128.16,83.0]
[1744752263937,15.76343731,128.18,128.16,83.0]
[1744752264138,34.41308617,128.17,128.16,83.0]
[1744752264355,15.76343731,128.17,128.16,83.0]
[1744752264955,23.85853731,128.17,128.16,83.0]
[1744752265258,31.66067509,128.17,128.16,83.0]
[1744752266452,15.89723778,128.17,128.16,83.0]
[1744752266855,31.66067509,128.17,128.16,83.0]
[1744752267267,50.31032395,128.17,128.16,83.0]
[1744752277484,34.54688664,128.17,128.16,83.0]
[1744752277684,50.31032395,128.17,128.16,83.0]
[1744752280365,43.74102395,128.17,128.16,83.0]
[1744752281285,38.0771258,128.17,128.16,83.0]
[1744752281491,18.64964886,128.16,128.12,0.063]
[1744752281785,10.09953916,128.14,128.12,0.063]
[1744752282488,7.80457348,128.13,128.12,0.063]
[1744752288995,42.24041333,128.13,128.12,0.063]
[1744752290971,23.59076447,128.13,128.12,0.063]
[1744752291189,42.24041333,128.13,128.12,0.063]
[1744752291796,26.45422234,128.13,128.12,0.063]
[1744752293798,42.24041333,128.13,128.12,0.063]
[1744752300402,42.3825749,128.13,128.12,0.063]
[1744752300601,42.3825749,128.13,128.12,1e-08]
[1744752300793,62.3825749,128.13,128.12,1e-08]
[1744752300995,63.9255749,128.13,128.12,1e-08]
[1744752301298,43.9255749,128.13,128.12,1e-08]
[1744752303307,38.24702619,128.13,128.12,1e-08]
[1744752306788,28.13938391,128.13,128.12,1e-08]
[1744752307011,38.24702619,128.13,128.12,1e-08]
[1744752310584,38.10486462,128.13,128.12,1e-08]
[1744752312631,36.56186462,128.13,128.12,1e-08]
[1744752313316,18.64964886,128.13,128.12,1e-08]
[1744752316126,28.75729114,128.13,128.12,1e-08]
[1744752318827,36.56186462,128.13,128.12,1e-08]
[1744752322632,17.91221576,128.13,128.12,1e-08]
[1744752322933,18.64964886,128.13,128.12,1e-08]
[1744752324452,26.45422234,128.13,128.12,1e-08]
[1744752328112,17.91180241,128.14,128.12,1e-08]
[1744752328431,26.4532936,128.15,128.12,1e-08]
[1744752330840,7.80364474,128.15,128.12,1e-08]
[1744752331027,18.64964886,128.15,128.12,1e-08]
[1744752333321,7.80244448,128.17,128.12,93.10764229]
[1744752333627,1.5985,128.19,128.13,10.10764228]
[1744752333628,28.78729114,128.19,128.13,10.10764228]
[1744752333821,0.03,128.19,128.15,10.10764228]
[1744752334022,18.67964886,128.19,128.15,93.10764228]
[1744752334539,18.67964886,128.19,128.15,100.91075885]
[1744752334914,26.48060787,128.19,128.15,100.91075885]
[1744752337337,26.48060787,128.19,128.15,90.80311657]
[1744752338142,36.58825015,128.19,128.15,83.0]
[1744752338643,0.03,128.19,128.15,100.91091975]
[1744752338939,10.13764228,128.19,128.15,90.80327747]
[1744752339136,28.75729114,128.17,128.15,83.0]
[1744752339331,10.10764228,128.16,128.15,83.0]
[1744752339531,28.75729114,128.16,128.15,83.0]
[1744752340541,36.5600377,128.16,128.15,83.0]
[1744752342646,17.91038884,128.16,128.15,83.0]
[1744752346024,38.79181043,128.15,128.12,1e-08]
[1744752346225,28.89945271,128.13,128.12,1e-08]
[1744752348751,36.70402619,128.13,128.12,1e-08]
[1744752359055,36.56186462,128.13,128.12,1e-08]
[1744752359247,26.45422234,128.13,128.12,1e-08]
[1744752359556,36.56186462,128.13,128.12,1e-08]
[1744752361340,18.64964886,128.13,128.12,1e-08]
[1744752361544,29.45187054,128.14,128.12,1e-08]
[1744752363340,19.34422826,128.14,128.12,1e-08]
[1744752364961,29.45187054,128.14,128.12,1e-08]
[1744752365854,57.04444315,128.18,128.12,1e-08]
[1744752366060,10.10764228,128.16,128.12,83.00000001]
[1744752367477,10.10764228,128.16,128.12,90.80514711]
[1744752368057,28.75729114,128.17,128.12,90.80514711]
[1744752368467,7.80296307,128.16,128.12,90.80514711]
[1744752369151,7.80296307,128.16,128.12,100.91278939]
[1744752370652,36.55975381,128.17,128.12,100.91278939]
[1744752372268,31.04444315,128.18,128.12,100.91278939]
[1744752372269,7.80172972,128.18,128.14,10.10764228]
[1744752373671,7.80172972,128.18,128.14,17.91152872]
[1744752374264,26.48083335,128.19,128.14,100.91152872]
[1744752374659,26.48083335,128.19,128.14,90.80388644]
[1744752374858,26.48083335,128.19,128.14,100.91152872]
[1744752375065,0.03,128.19,128.15,10.10764228]
[1744752375263,0.03,128.19,128.15,93.10764228]
[1744752375773,0.03,128.19,128.15,100.91069246]
[1744752379049,0.03,128.19,128.16,1.5955]
[1744752379973,0.03,128.19,128.16,84.5955]
[1744752387375,18.67964886,128.19,128.16,84.5955]
[1744752387592,0.03,128.19,128.16,84.5955]
[1744752387764,18.67964886,128.19,128.16,84.5955]
[1744752388382,26.48088566,128.19,128.16,84.5955]
[1744752391168,36.58852794,128.19,128.16,84.5955]
[1744752391884,36.58852794,128.19,128.16,83.0]
[1744752392263,26.48088566,128.19,128.16,83.0]
[1744752392482,36.58852794,128.19,128.16,83.0]
[1744752394684,26.48088566,128.19,128.16,83.0]
[1744752410706,0.03,128.19,128.16,83.0]
[1744752412610,0.03,128.19,128.16,90.80260453]
[1744752415812,0.03,128.19,128.16,83.0]
[1744752416513,0.03,128.19,128.16,93.10764228]
[1744752416711,0.03,128.19,128.16,83.0]
[1744752417605,0.03,128.19,128.16,90.80261827]
[1744752418494,0.03,128.19,128.16,83.0]
[1744752420817,0.03,128.19,128.16,90.80272622]
[1744752421214,0.03,128.19,128.16,83.0]
[1744752423216,0.03,128.19,128.16,90.80271716]
[1744752423619,0.03,128.19,128.16,83.0]
[1744752428627,0.03,128.19,128.16,90.80269437]
[1744752436738,0.03,128.19,128.17,1.5322]
[1744752436944,0.03,128.19,128.17,102.44187755]
[1744752442958,0.03,128.19,128.18,10.10764228]
[1744752443135,0.03,128.19,128.18,83.0]
[1744752443947,0.03,128.19,128.18,90.80152909]
[1744752444458,0.03,128.19,128.18,100.90917137]
[1744752445559,0.03,128.19,128.18,133.19472178]
[1744752445759,0.03,128.22,128.21,26.0]
[1744752445957,0.03,128.22,128.21,126.87734589]
[1744752447159,0.03,128.22,128.21,128.40374589]
[1744752455565,0.03,128.22,128.21,118.29610361]
[1744752455760,0.03,128.22,128.21,128.40374589]
[1744752474578,0.03,128.22,128.21,126.87734589]
[1744752478987,0.03,128.23,128.22,0.14216157]
[1744752479167,0.03,128.25,128.24,26.0]
[1744752479368,0.03,128.25,128.24,119.07764228]
[1744752480375,0.03,128.25,128.24,253.57764228]
[1744752480987,0.03,128.25,128.24,261.37552125]
[1744752483071,0.03,128.25,128.24,82.97]
[1744752483494,28.78729114,128.25,128.24,82.97]
[1744752484070,18.64964886,128.23,128.18,82.97]
[1744752484286,18.64964886,128.2,128.18,82.97]
[1744752485076,7.8009205,128.19,128.18,82.97]
[1744752485278,26.45056936,128.19,128.18,82.97]
[1744752485488,17.90856278,128.19,128.18,82.97]
[1744752485673,17.90856278,128.19,128.13,83.033]
[1744752485866,18.64964886,128.16,128.13,83.033]
[1744752486070,18.64964886,128.14,128.13,83.033]
[1744752486271,28.75729114,128.14,128.13,83.033]
[1744752486471,28.75729114,128.14,128.13,0.063]
[1744752486674,35.09169114,128.14,128.13,0.063]
[1744752487091,43.03781712,128.14,128.13,0.063]
[1744752490277,38.79181043,128.13,128.12,1e-08]
[1744752490484,60.33945271,128.13,128.12,1e-08]
[1744752491183,68.14402619,128.13,128.12,1e-08]
[1744752493294,48.14402619,128.13,128.12,1e-08]
[1744752494702,18.64964886,128.13,128.12,1e-08]
[1744752495886,7.8035876,128.15,128.12,1e-08]
[1744752496087,26.0,128.16,128.12,10.10764229]
[1744752496088,26.45256376,128.16,128.12,10.10764229]
[1744752496603,18.64964886,128.16,128.13,10.10764228]
[1744752504307,26.45254681,128.16,128.13,10.10764228]
[1744752504919,7.80289795,128.16,128.13,10.10764228]
[1744752506026,26.45254681,128.16,128.12,93.07764229]
[1744752510518,10.10764228,128.18,128.13,10.10764228]
[1744752510704,18.64964886,128.17,128.13,93.07764228]
[1744752510911,28.75729114,128.17,128.13,82.97]
[1744752512030,7.80274656,128.16,128.13,82.97]
[1744752515430,26.45117795,128.18,128.13,82.97]
[1744752515635,36.55882023,128.18,128.13,82.97]
[1744752518240,18.64964886,128.15,128.13,82.97]
[1744752520042,10.10764228,128.15,128.13,82.97]
[1744752520234,26.45361327,128.14,128.13,82.97]
[1744752522337,36.56125555,128.14,128.12,1e-08]
[1744752539140,26.45361327,128.14,128.12,1e-08]
[1744752548756,7.80396441,128.14,128.12,1e-08]
[1744752549255,37.89331756,128.15,128.12,1e-08]
[1744752563166,26.45331756,128.15,128.12,1e-08]
[1744752569053,7.80274656,128.16,128.12,82.97000001]
[1744752569359,11.42,128.18,128.14,10.10764228]
[1744752569562,26.45097539,128.19,128.15,10.10764228]
[1744752569760,26.45097539,128.19,128.15,93.07764228]
[1744752570163,26.45097539,128.19,128.15,82.97]
[1744752571251,26.45097539,128.19,128.15,93.07764228]
[1744752572863,26.45097539,128.19,128.15,100.88097701]
[1744752575072,0.03,128.2,128.17,10.10764228]
[1744752576082,0.03,128.2,128.17,17.90970077]
[1744752577179,0.03,128.2,128.18,10.10764228]
[1744752577373,0.03,128.2,128.19,10.10764228]
[1744752577782,0.03,128.2,128.19,93.07764228]
[1744752578873,0.03,128.2,128.19,100.87856278]
[1744752581478,0.03,128.2,128.19,235.37856278]
[1744752581859,0.03,128.2,128.19,243.46026278]
[1744752582272,0.03,128.2,128.19,243.60242435]
[1744752582668,0.03,128.22,128.2,83.08216157]
[1744752582870,0.03,128.22,128.21,88.06037297]
[1744752583062,0.03,128.22,128.21,222.56037297]
[1744752583474,0.03,128.22,128.21,230.36007658]
[1744752587489,0.03,128.22,128.21,189.78734589]
[1744752587687,0.03,128.22,128.21,178.40734589]
[1744752587988,0.03,128.22,128.21,126.84734589]
[1744752588193,0.03,128.22,128.21,119.04764228]
[1744752589683,0.03,128.22,128.21,126.84734589]
[1744752609091,10.13764228,128.22,128.15,90.80613044]
[1744752609292,28.75729114,128.21,128.15,83.003]
[1744752609512,28.75729114,128.21,128.15,93.11064228]
[1744752609902,18.64964886,128.21,128.16,10.10764228]
[1744752610816,7.80031201,128.2,128.15,83.003]
[1744752610994,7.80031201,128.2,128.16,10.10764228]
[1744752614321,7.80031201,128.2,128.16,93.04764228]
[1744752616019,7.80031201,128.2,128.16,82.94]
[1744752616223,7.80031201,128.2,128.16,93.04764228]
[1744752617127,7.80031201,128.2,128.17,10.10764228]
[1744752617325,7.79982834,128.21,128.19,10.10764228]
[1744752617723,7.79982834,128.21,128.17,82.94]
[1744752618029,7.79982834,128.21,128.19,10.10764228]
[1744752618227,7.8290953,128.22,128.19,10.10764228]
[1744752620731,0.03,128.22,128.21,10.10764228]
[1744752621535,0.03,128.22,128.2,10.10764228]
[1744752623143,0.03,128.22,128.2,93.04764228]
[1744752624222,0.03,128.22,128.21,10.10764228]
[1744752624548,0.03,128.22,128.21,93.04764228]
[1744752630761,0.03,128.22,128.21,100.84734589]
[1744752635159,0.03,128.22,128.21,93.04764228]
[1744752639527,0.03,128.22,128.21,141.27791501]
[1744752639732,0.03,128.22,128.21,141.42007658]
[1744752643354,0.03,128.25,128.24,26.0]
[1744752643558,0.03,128.25,128.24,119.01764228]
[1744752645130,0.03,128.25,128.24,126.81552125]
[1744752652754,0.03,128.25,128.24,119.01764228]
[1744752653163,0.03,128.25,128.24,108.91]
[1744752654260,0.03,128.25,128.24,126.81552125]
[1744752659965,0.03,128.25,128.24,132.95475607]
[1744752660462,0.03,128.25,128.24,126.81552125]
[1744752662648,0.03,128.25,128.24,132.95599194]
[1744752664053,0.03,128.25,128.24,126.81552125]
[1744752664351,0.03,128.25,128.24,261.31552125]
[1744752668071,0.03,128.25,128.24,261.45768282]
[1744752668372,0.03,128.27,128.26,82.85]
[1744752668666,0.03,128.27,128.26,92.95764228]
[1744752669369,0.03,128.27,128.26,93.09980385]
[1744752670171,0.03,128.27,128.26,126.89646687]
[1744752670358,0.03,128.27,128.26,126.7543053]
[1744752672965,0.03,128.28,128.26,262.8136053]
[1744752673175,0.03,128.29,128.27,50.68037297]
[1744752673361,0.03,128.29,128.28,62.00037297]
[1744752674169,0.03,128.29,128.28,287.14582042]
[1744752678987,0.03,128.32,128.3,33.79423226]
[1744752679173,0.03,128.32,128.3,126.72187454]
[1744752680970,0.03,128.32,128.3,261.22187454]
[1744752681161,0.03,128.35,128.32,0.14216157]
[1744752681355,0.03,128.35,128.34,36.10764228]
[1744752681572,0.03,128.35,128.34,253.42764228]
[1744752682376,10.599557,128.42,128.38,26.0]
[1744752682557,2.834857,128.42,128.41,10.10764228]
[1744752682761,2.834857,128.42,128.41,108.82]
[1744752683169,2.834857,128.42,128.41,82.82]
[1744752686884,21.48450586,128.42,128.41,82.82]
[1744752687878,2.834857,128.42,128.41,82.82]
[1744752688591,10.62180607,128.42,128.41,82.82]
[1744752692689,10.62180607,128.42,128.41,92.92764228]
[1744752693571,10.12180607,128.42,128.41,82.82]
[1744752693778,2.334857,128.42,128.41,82.82]
[1744752695487,2.334857,128.42,128.41,92.92764228]
[1744752695867,2.334857,128.42,128.41,92.77022228]
[1744752697394,2.334857,128.42,128.41,82.66258]
[1744752697775,2.334857,128.42,128.41,92.77022228]
[1744752700297,2.334857,128.42,128.41,82.66258]
[1744752702190,38.87909721,128.42,128.41,82.66258]
[1744752702499,30.34285493,128.42,128.41,82.66258]
[1744752702702,40.45049721,128.42,128.41,82.66258]
[1744752704600,40.45049721,128.42,128.38,134.5]
[1744752704601,18.64964886,128.41,128.35,108.72558]
[1744752704904,28.75729114,128.41,128.36,10.10764228]
[1744752705092,10.10764228,128.4,128.35,118.83322228]
[1744752705299,18.64964886,128.39,128.35,108.72558]
[1744752705496,18.64964886,128.39,128.35,82.72558]
[1744752705497,28.75729114,128.39,128.35,82.72558]
[1744752705797,7.79058896,128.36,128.35,82.72558]
[1744752707408,26.4397842,128.37,128.35,82.72558]
[1744752709021,18.64964886,128.37,128.35,82.72558]
[1744752709914,36.54727927,128.37,128.35,82.72558]
[1744752710093,28.75729114,128.37,128.35,82.72558]
[1744752710696,18.64964886,128.41,128.35,82.72558]
[1744752711011,10.10764228,128.39,128.35,82.72558]
[1744752711213,17.89653835,128.39,128.35,82.72558]
[1744752712113,18.64964886,128.37,128.35,82.72558]
[1744752713305,2.334857,128.42,128.36,10.10764228]
[1744752713616,18.64964886,128.41,128.36,92.77022228]
[1744752714515,18.64964886,128.41,128.36,100.56026401]
[1744752715995,28.75729114,128.41,128.36,100.56026401]
[1744752716913,18.64964886,128.41,128.36,100.56026401]
[1744752717207,18.64964886,128.41,128.37,10.10764228]
[1744752719204,18.64964886,128.41,128.37,17.89709098]
[1744752719794,18.64964886,128.41,128.37,7.7894487]
[1744752719998,18.64964886,128.41,128.37,17.89709098]
[1744752721599,18.64964886,128.41,128.38,10.10764228]
[1744752722616,2.334857,128.42,128.4,10.10764228]
[1744752723002,2.334857,128.42,128.41,10.10764228]
[1744752723524,2.334857,128.42,128.41,17.89519776]
[1744752728823,2.334857,128.42,128.41,100.55777776]
[1744752732623,0.03,128.47,128.41,280.52666647]
[1744752732810,0.03,128.47,128.46,10.10764228]
[1744752734231,0.03,128.47,128.44,26.0]
[1744752734437,0.03,128.47,128.46,10.10764228]
[1744752734638,0.03,128.47,128.46,17.89216664]
[1744752734930,0.03,128.47,128.46,140.98531576]
[1744752735532,0.03,128.47,128.46,90.44710436]
[1744752735828,700.0,128.5,128.46,186.44662667]
[1744752736029,700.0,128.5,128.49,36.10764228]
[1744752736215,700.0,128.5,128.49,118.77022228]
[1744752738526,700.0,128.5,128.49,92.77022228]
[1744752738718,700.0,128.5,128.49,82.66258]
[1744752739812,18.64964886,128.49,128.46,144.60764228]
[1744752740024,18.64964886,128.49,128.45,118.77022228]
[1744752740220,18.64964886,128.49,128.45,92.77022228]
[1744752741029,7.78331257,128.48,128.45,92.77022228]
[1744752744429,18.64964886,128.48,128.46,10.10764228]
[1744752744636,7.7830126,128.49,128.46,10.10764228]
[1744752744842,18.64964886,128.48,128.46,10.10764228]
[1744752746549,707.78236377,128.5,128.47,10.10764228]
[1744752746721,18.64964886,128.49,128.47,10.10764228]
[1744752748841,26.43255824,128.49,128.47,10.10764228]
[1744752749227,26.43255824,128.49,128.46,10.10764228]
[1744752758644,26.43255824,128.49,128.47,10.10764228]
[1744752758948,26.43255824,128.49,128.46,10.10764228]
[1744752762626,18.64964886,128.49,128.46,7.78442156]
[1744752763050,18.64964886,128.49,128.46,17.89206384]
[1744752765148,18.64964886,128.49,128.46,10.10764228]
[1744752767449,18.64964886,128.49,128.47,10.10764228]
[1744752771259,700.0,128.5,128.47,10.10764228]
[1744752772262,700.0,128.5,128.47,17.89153461]
[1744752772464,700.0,128.5,128.48,10.10764228]
[1744752772669,700.0,128.5,128.49,10.10764228]
[1744752772849,700.0,128.5,128.49,17.8903491]
[1744752775460,700.0,128.5,128.49,7.78270682]
[1744752775664,700.0,128.5,128.49,17.8903491]
[1744752785981,700.0,128.5,128.48,90.44576072]
[1744752786555,700.0,128.5,128.48,100.553403]
[1744752786776,700.0,128.5,128.48,90.44576072]
[1744752787081,700.0,128.5,128.48,100.553403]
[1744752790859,700.0,128.5,128.48,82.66258]
[1744752793486,707.78216897,128.5,128.48,82.66258]
[1744752794569,700.0,128.5,128.48,82.66258]
[1744752796087,707.78213958,128.5,128.48,82.66258]
[1744752796388,700.0,128.5,128.48,82.66258]
[1744752798787,707.78212414,128.5,128.48,82.66258]
[1744752802675,700.0,128.5,128.48,82.66258]
[1744752804306,707.78221093,128.5,128.48,82.66258]
[1744752807513,700.0,128.5,128.48,82.66258]
[1744752811914,707.78234965,128.5,128.48,82.66258]
[1744752813213,700.0,128.5,128.48,82.66258]
[1744752813389,707.78210375,128.5,128.48,82.66258]
[1744752822216,700.0,128.5,128.49,10.10764228]
[1744752823339,700.0,128.5,128.49,17.8903491]
[1744752824937,700.0,128.5,128.49,100.5529291]
[1744752825132,599.59365066,128.5,128.49,100.5529291]
[1744752825343,490.89008876,128.5,128.49,167.12565979]
[1744752825544,393.59429073,128.5,128.49,167.12565979]
[1744752825840,344.52891662,128.5,128.49,141.12565979]
[1744752826016,256.66325432,128.5,128.49,141.12565979]
[1744752826216,93.07920594,128.5,128.49,192.96307979]
[1744752826410,0.03,128.53,128.49,212.41984685]
[1744752826738,0.03,128.53,128.52,76.5382114]
[1744752827040,0.03,128.53,128.52,133.5382114]
[1744752827614,0.03,128.53,128.52,93.10764228]
[1744752828035,0.03,128.53,128.52,100.88853241]
[1744752828414,0.03,128.53,128.52,83.0]
[1744752828732,0.03,128.53,128.52,93.10764228]
[1744752829742,0.59426687,128.53,128.52,83.0]
[1744752830325,8.37455162,128.53,128.52,83.0]
[1744752830942,69.37975465,128.53,128.47,0.027277]
[1744752831127,10.10764228,128.51,128.47,0.027277]
[1744752831315,18.64964886,128.5,128.47,0.027277]
[1744752831640,28.75729114,128.5,128.47,0.027277]
[1744752831819,26.43221985,128.5,128.47,0.027277]
[1744752833732,36.53986213,128.5,128.47,0.027277]